Workbook

Sheet membership
A1: The American Legion Department of Alaska
A2: Membership Report
A3: 2020-10-23
A4: Post # and Name | B4: Location | C4: 2021 | D4: 2020 | E4: Goal | F4: Diff | G4: % of Goal
A5: GM-01- Mid-Pacific | B5: Tamuning | C5: 40 | D5: 67 | E5: 74 | F5: =SUM(C5-E5) -> -34 | G5: =C5/E5 -> 0.5405405405
A6: Post 01 - Jack Henry | B6: Anchorage | C6: 430 | D6: 617 | E6: 637 | F6: -207 | G6: 0.6750392465
A7: Post 02 - Valdez | B7: Valdez | C7: 14 | D7: 16 | E7: 23 | F7: -9 | G7: 0.6086956522
A8: Post 03 - Joseph T. Craig | B8: Ketchikan | C8: 129 | D8: 177 | E8: 193 | F8: -64 | G8: 0.6683937824
A9: Post 04 - Pioneer | B9: Anchorage | C9: 9 | D9: 10 | E9: 14 | F9: -5 | G9: 0.6428571429
A10: Post 05 - Seward | B10: Seward | C10: 160 | D10: 229 | E10: 234 | F10: -74 | G10: 0.6837606838
A11: Post 06 - Merlin Elmer Palmer | B11: Wrangell | C11: 23 | D11: 38 | E11: 49 | F11: -26 | G11: 0.4693877551
A12: Post 07 - Skagway | B12: Skagway | C12: 33 | D12: 33 | E12: 39 | F12: -6 | G12: 0.8461538462
A13: Post 08 - John W. Jones | B13: Cordova | C13: 4 | D13: 6 | E13: 11 | F13: -7 | G13: 0.3636363636
A14: Post 09 - Koyukuk | B14: Coldfoot | C14: 21 | D14: 32 | E14: 32 | F14: -11 | G14: 0.65625
A15: Post 11 - Dorman H. Baker | B15: Fairbanks | C15: 109 | D15: 124 | E15: 207 | F15: -98 | G15: 0.5265700483
A16: Post 12 - Lynn Canal | B16: Haines | C16: 44 | D16: 89 | E16: 106 | F16: -62 | G16: 0.4150943396 | N16: =SUM(C5:C39) -> 3323
A17: Post 13 - Sitka | B17: Sitka | C17: 40 | D17: 64 | E17: 84 | F17: -44 | G17: 0.4761904762
A18: Post 14 - Edward Locken | B18: Petersburg | C18: 6 | D18: 6 | E18: 11 | F18: -5 | G18: 0.5454545455
A19: Post 15 - Matanuska Valley | B19: Palmer | C19: 160 | D19: 258 | E19: 288 | F19: -128 | G19: 0.5555555556
A20: Post 16 - General Buckner | B20: Homer | C20: 84 | D20: 143 | E20: 162 | F20: -78 | G20: 0.5185185185
A21: Post 17 - Robert G. Blair | B21: Kodiak | C21: 109 | D21: 179 | E21: 189 | F21: -80 | G21: 0.5767195767
A22: Post 18 - Ninilchik | B22: Ninilchik | C22: 79 | D22: 104 | E22: 110 | F22: -31 | G22: 0.7181818182
A23: Post 20 - George H. Plumley Memorial | B23: Kenai | C23: 135 | D23: 199 | E23: 221 | F23: -86 | G23: 0.6108597285
A24: Post 21 - Aurora Borealis | B24: Anchorage | C24: 28 | D24: 52 | E24: 61 | F24: -33 | G24: 0.4590163934
A25: Post 22 - Jack Warren | B25: Delta Junction | C25: 27 | D25: 40 | E25: 48 | F25: -21 | G25: 0.5625
A26: Post 25 - Auke Bay | B26: Auke Bay | C26: 69 | D26: 97 | E26: 106 | F26: -37 | G26: 0.6509433962
A27: Post 26 - Prince of Wales | B27: Craig | C27: 3 | D27: 18 | E27: 23 | F27: =(C27-E27) -> -20 | G27: 0.1304347826
A28: Post 27 - Gladys M. Heintz Memorial | B28: Glenallen | C28: 26 | D28: 38 | E28: 46 | F28: =SUM(C28-E28) -> -20 | G28: 0.5652173913
A29: Post 28 - Spenard | B29: Anchorage | C29: 359 | D29: 577 | E29: 604 | F29: =SUM(C29-E29) -> -245 | G29: 0.5943708609
A30: Post 29 - Muldoon | B30: Anchorage | C30: 159 | D30: 288 | E30: 320 | F30: =SUM(C30-E30) -> -161 | G30: 0.496875
A31: Post 30 - Con Miller | B31: North Pole | C31: 70 | D31: 133 | E31: 160 | F31: =SUM(C31-E31) -> -90 | G31: 0.4375
A32: Post 33 - Peters Creek | B32: Chugiak | C32: 216 | D32: 341 | E32: 350 | F32: =(C32-E32) -> -134 | G32: 0.6171428571
A33: Post 34 - Chappie James | B33: Anchorage | C33: 24 | D33: 38 | E33: 56 | F33: =SUM(C33-E33) -> -32 | G33: 0.4285714286
A34: Post 35 - Susitna Valley | B34: Wasilla | C34: 241 | D34: 402 | E34: 417 | F34: =SUM(C34-E34) -> -176 | G34: 0.5779376499
A35: Post 49 - General Claire L. Chennault | B35: Taipei - Taiwan | C35: 19 | D35: 21 | E35: 27 | F35: =SUM(C35-E35) -> -8 | G35: 0.7037037037
A36: Post 57 - C.R. Huber | B36: Fairbanks | C36: 107 | D36: 255 | E36: 280 | F36: =SUM(C36-E36) -> -173 | G36: 0.3821428571
A37: Post 100 - Eagle River | B37: Eagle River | C37: 1 | D37: 20 | E37: 24 | F37: =SUM((C37-E37)) -> -23 | G37: =SUM(C37/E37) -> 0.04166666667
A38: Post 442 - Peter Heyano | B38: Dillingham | C38: 8 | D38: 10 | E38: 28 | F38: =SUM(C38-E38) -> -20 | G38: =C38/E38 -> 0.2857142857
A39: Post 77 - Department Headquarters | B39: Anchorage | C39: 337 | D39: 466 | E39: 466 | F39: =SUM(C39-E39) -> -129 | G39: =C39/E39 -> 0.7231759657
A40: Grand Totals: | C40: 3323 | D40: 5414 | E40: 5502 | G40: =AVERAGE(C40/E40) -> 0.6039621956

Sheet %
A1: The American Legion Department of Alaska
A2: Percentage Membership Report
A3: 2020-10-23
A4: Post # and Name | B4: Location | C4: 2021 | D4: 2020 | E4: Goal | F4: Diff | G4: % of Goal
A5: Post 07 - Skagway | B5: Skagway | C5: 33 | D5: 33 | E5: 39 | F5: =SUM(C5-E5) -> -6 | G5: =C5/E5 -> 0.8461538462
A6: Post 77 - Department Headquarters | B6: Anchorage | C6: 337 | D6: 466 | E6: 466 | F6: -129 | G6: 0.7231759657
A7: Post 18 - Ninilchik | B7: Ninilchik | C7: 79 | D7: 104 | E7: 110 | F7: -31 | G7: 0.7181818182
A8: Post 49 - General Claire L. Chennault | B8: Taipei - Taiwan | C8: 19 | D8: 21 | E8: 27 | F8: -8 | G8: 0.7037037037
A9: Post 05 - Seward | B9: Seward | C9: 160 | D9: 229 | E9: 234 | F9: -74 | G9: 0.6837606838
A10: Post 01 - Jack Henry | B10: Anchorage | C10: 430 | D10: 617 | E10: 637 | F10: -207 | G10: 0.6750392465
A11: Post 03 - Joseph T. Craig | B11: Ketchikan | C11: 129 | D11: 177 | E11: 193 | F11: -64 | G11: 0.6683937824
A12: Post 09 - Koyukuk | B12: Coldfoot | C12: 21 | D12: 32 | E12: 32 | F12: -11 | G12: 0.65625
A13: Post 25 - Auke Bay | B13: Auke Bay | C13: 69 | D13: 97 | E13: 106 | F13: -37 | G13: 0.6509433962
A14: Post 04 - Pioneer | B14: Anchorage | C14: 9 | D14: 10 | E14: 14 | F14: -5 | G14: 0.6428571429
A15: Post 33 - Peters Creek | B15: Chugiak | C15: 216 | D15: 341 | E15: 350 | F15: =(C15-E15) -> -134 | G15: 0.6171428571
A16: Post 20 - George H. Plumley Memorial | B16: Kenai | C16: 135 | D16: 199 | E16: 221 | F16: =SUM(C16-E16) -> -86 | G16: 0.6108597285
A17: Post 02 - Valdez | B17: Valdez | C17: 14 | D17: 16 | E17: 23 | F17: -9 | G17: 0.6086956522
A18: Post 28 - Spenard | B18: Anchorage | C18: 359 | D18: 577 | E18: 604 | F18: -245 | G18: 0.5943708609
A19: Post 35 - Susitna Valley | B19: Wasilla | C19: 241 | D19: 402 | E19: 417 | F19: -176 | G19: 0.5779376499
A20: Post 17 - Robert G. Blair | B20: Kodiak | C20: 109 | D20: 179 | E20: 189 | F20: -80 | G20: 0.5767195767
A21: Post 27 - Gladys M. Heintz Memorial | B21: Glenallen | C21: 26 | D21: 38 | E21: 46 | F21: -20 | G21: 0.5652173913
A22: Post 22 - Jack Warren | B22: Delta Junction | C22: 27 | D22: 40 | E22: 48 | F22: -21 | G22: 0.5625
A23: Post 15 - Matanuska Valley | B23: Palmer | C23: 160 | D23: 258 | E23: 288 | F23: -128 | G23: 0.5555555556
A24: Post 14 - Edward Locken | B24: Petersburg | C24: 6 | D24: 6 | E24: 11 | F24: -5 | G24: 0.5454545455
A25: GM-01- Mid-Pacific | B25: Tamuning | C25: 40 | D25: 67 | E25: 74 | F25: -34 | G25: 0.5405405405
A26: Post 11 - Dorman H. Baker | B26: Fairbanks | C26: 109 | D26: 124 | E26: 207 | F26: -98 | G26: 0.5265700483
A27: Post 16 - General Buckner | B27: Homer | C27: 84 | D27: 143 | E27: 162 | F27: -78 | G27: 0.5185185185
A28: Post 29 - Muldoon | B28: Anchorage | C28: 159 | D28: 288 | E28: 320 | F28: -161 | G28: 0.496875
A29: Post 13 - Sitka | B29: Sitka | C29: 40 | D29: 64 | E29: 84 | F29: -44 | G29: 0.4761904762
A30: Post 06 - Merlin Elmer Palmer | B30: Wrangell | C30: 23 | D30: 38 | E30: 49 | F30: -26 | G30: 0.4693877551
A31: Post 21 - Aurora Borealis | B31: Anchorage | C31: 28 | D31: 52 | E31: 61 | F31: -33 | G31: 0.4590163934
A32: Post 30 - Con Miller | B32: North Pole | C32: 70 | D32: 133 | E32: 160 | F32: -90 | G32: 0.4375
A33: Post 34 - Chappie James | B33: Anchorage | C33: 24 | D33: 38 | E33: 56 | F33: -32 | G33: 0.4285714286
A34: Post 12 - Lynn Canal | B34: Haines | C34: 44 | D34: 89 | E34: 106 | F34: -62 | G34: 0.4150943396
A35: Post 57 - C.R. Huber | B35: Fairbanks | C35: 107 | D35: 255 | E35: 280 | F35: -173 | G35: 0.3821428571
A36: Post 08 - John W. Jones | B36: Cordova | C36: 4 | D36: 6 | E36: 11 | F36: -7 | G36: 0.3636363636
A37: Post 442 - Peter Heyano | B37: Dillingham | C37: 8 | D37: 10 | E37: 28 | F37: -20 | G37: 0.2857142857
A38: Post 26 - Prince of Wales | B38: Craig | C38: 3 | D38: 18 | E38: 23 | F38: =(C38-E38) -> -20 | G38: 0.1304347826
A39: Post 100 - Eagle River | B39: Eagle River | C39: 1 | D39: 20 | E39: 24 | F39: =SUM((C39-E39)) -> -23 | G39: =SUM(C39/E39) -> 0.04166666667
A40: Grand Totals: | C40: 3323 | D40: 5414 | E40: 5502 | G40: =AVERAGE(C40/E40) -> 0.6039621956

Sheet SAL 2021
A1: Barometer 2021 as of 10/16/20
A3: SQD # | B3: SQUADRON NAME | C3: GOAL | D3: ACTUAL | E3: PERCENTAGE
A4: 16 | B4: GENERAL BUCKNER | C4: 70 | D4: 52 | E4: 74.3
A5: 29 | B5: MULDOON | C5: 44 | D5: 24 | E5: 54.5
A6: 33 | B6: PETERS CREEK | C6: 108 | D6: 56 | E6: 51.9
A7: 28 | B7: SPENARD | C7: 135 | D7: 69 | E7: 51.1
A8: 35 | B8: SUSITNA VALLEY | C8: 156 | D8: 79 | E8: 50.3
A9: 15 | B9: MATANUSKA VALLEY | C9: 82 | D9: 36 | E9: 43.9
A10: 57 | B10: C RUSSELL HUBER | C10: 159 | D10: 69 | E10: 43.4
A11: 1 | B11: JACK HENRY | C11: 129 | D11: 54 | E11: 41.9
A12: 3 | B12: KETCHIKAN | C12: 40 | D12: 14 | E12: 35
A13: ************ | B13: AVERAGE***************************** | C13: 1436 | D13: 486 | E13: 33.8
A14: 5 | B14: SEWARD | C14: 79 | D14: 26 | E14: 32.9
A15: 11 | B15: DORMAN H BAKER | C15: 27 | D15: 7 | E15: 25.9
A16: 12 | B16: LYNN CANAL | C16: 49 | D16: 0 | E16: 0
A17: 13 | B17: SITKA | C17: 54 | D17: 0 | E17: 0
A18: 17 | B18: ROBERT G BLAIR | C18: 146 | D18: 0 | E18: 0
A19: 18 | B19: NINILCHIK | C19: 64 | D19: 0 | E19: 0
A20: 20 | B20: GEORGE H PLUMLEY MEMORIAL | C20: 55 | D20: 0 | E20: 0
A21: 30 | B21: CON MILLER | C21: 26 | D21: 0 | E21: 0
A22: 34 | B22: CHAPPIE JAMES | C22: 12 | D22: 0 | E22: 0
B28: DETACHMENT | C28: 1436 | D28: 486 | E28: 33.8

Sheet SAL 2020
A1: Barometer 2020 as of 10/16/2020
A3: SQD # | B3: SQUADRON NAME | C3: GOAL | D3: ACTUAL | E3: PERCENTAGE
A4: 13 | B4: SITKA | C4: 44 | D4: 54 | E4: 122.7
A5: 34 | B5: CHAPPIE JAMES | C5: 10 | D5: 12 | E5: 120
A6: 33 | B6: PETERS CREEK | C6: 97 | D6: 108 | E6: 111.3
A7: 30 | B7: CON MILLER | C7: 25 | D7: 26 | E7: 104
A8: 15 | B8: MATANUSKA VALLEY | C8: 79 | D8: 82 | E8: 103.8
A9: 1 | B9: JACK HENRY | C9: 128 | D9: 129 | E9: 100.8
A10: 5 | B10: SEWARD | C10: 79 | D10: 79 | E10: 100
A11: 57 | B11: C RUSSELL HUBER | C11: 159 | D11: 158 | E11: 99.4
A12: 17 | B12: ROBERT G BLAIR | C12: 147 | D12: 146 | E12: 99.3
A13: 3 | B13: KETCHIKAN | C13: 41 | D13: 40 | E13: 97.6
A14: ************ | B14: AVERAGE***************************** | C14: 1487 | D14: 1435 | E14: 96.5
A15: 11 | B15: DORMAN H BAKER | C15: 28 | D15: 27 | E15: 96.4
A16: 35 | B16: SUSITNA VALLEY | C16: 163 | D16: 157 | E16: 96.3
A17: 12 | B17: LYNN CANAL | C17: 51 | D17: 49 | E17: 96.1
A18: 18 | B18: NINILCHIK | C18: 68 | D18: 64 | E18: 94.1
A19: 16 | B19: GENERAL BUCKNER | C19: 80 | D19: 70 | E19: 87.5
A20: 29 | B20: MULDOON | C20: 51 | D20: 44 | E20: 86.3
A21: 20 | B21: GEORGE H PLUMLEY MEMORIAL | C21: 64 | D21: 55 | E21: 85.9
A22: 28 | B22: SPENARD | C22: 173 | D22: 135 | E22: 78
B24: DETACHMENT | C24: 1487 | D24: 1435 | E24: 96.5

Sheet AUX 2021
A3: ALA 2021 BAROMETER as of 10/23/2020
A4: UNIT NO. | B4: UNIT NAME | C4: OBJECTIVE | D4: JR. | E4: SR. | F4: TOTAL | G4: PERCENT
A5: 0077 | B5: HEADQUARTERS | C5: 20 | D5: 0 | E5: 19 | F5: 19 | G5: 0.95
A6: 0027 | B6: GLADYS M. HEINTZ | C6: 10 | D6: 0 | E6: 6 | F6: 6 | G6: 0.6
A7: 0003 | B7: KETCHIKAN | C7: 54 | D7: 2 | E7: 30 | F7: 32 | G7: =F7/C7 -> 0.5925925926
A8: 0033 | B8: PETERS CREEK | C8: 158 | D8: 11 | E8: 66 | F8: 77 | G8: 0.4873417722
A9: 0011 | B9: DORMAN H. BAKER | C9: 71 | D9: 0 | E9: 31 | F9: 31 | G9: 0.4366197183
A10: 0016 | B10: GENERAL BUCKNER | C10: 127 | D10: 0 | E10: 60 | F10: 60 | G10: 0.4724409449
A11: 0057 | B11: C. RUSSELL HUBER | C11: 210 | D11: 10 | E11: 82 | F11: 92 | G11: 0.4380952381
A12: 0005 | B12: SEWARD | C12: 154 | D12: 4 | E12: 60 | F12: 64 | G12: 0.4155844156
A13: 0035 | B13: SUSITNA VALLEY | C13: 200 | D13: 6 | E13: 91 | F13: 97 | G13: 0.485
A14: 0006 | B14: MERLIN ELMER PALMER | C14: 105 | D14: 2 | E14: 33 | F14: 35 | G14: 0.3333
A15: 0001 | B15: JACK HENRY | C15: 239 | D15: 1 | E15: 83 | F15: 84 | G15: =F15/C15 -> 0.3514644351
A16: 0029 | B16: MULDOON | C16: 100 | D16: 0 | E16: 21 | F16: 21 | G16: =F16/C16 -> 0.21
A17: 0034 | B17: CHAPPIE JAMES | C17: 10 | D17: 0 | E17: 2 | F17: 2 | G17: =F17/C17 -> 0.2
A18: 0020 | B18: GEO. H. PLUMLEY MEMORIAL | C18: 138 | D18: 2 | E18: 26 | F18: 28 | G18: =F18/C18 -> 0.2028985507
A19: 0018 | B19: NINILCHIK | C19: 85 | D19: 0 | E19: 16 | F19: 47 | G19: =F19/C19 -> 0.5529411765
A20: 0017 | B20: ROBERT G. BLAIR | C20: 122 | D20: 0 | E20: 22 | F20: 22 | G20: 0.1803
A21: 0015 | B21: MATANUSKA VALLEY | C21: 120 | D21: 1 | E21: 43 | F21: 44 | G21: =F21/C21 -> 0.3666666667
A22: 0028 | B22: SPENARD | C22: 252 | D22: 0 | E22: 68 | F22: 68 | G22: 0.2698412698
A23: 0013 | B23: SITKA | C23: 50 | D23: 0 | E23: 5 | F23: 5 | G23: 0.1
A24: 0012 | B24: LYNN CANAL | C24: 92 | D24: 0 | E24: 34 | F24: 34 | G24: 0.3695652174
A25: 0030 | B25: CON MILLER | C25: 30 | D25: 0 | E25: 1 | F25: 1 | G25: 0.03333333333
A26: 0442 | B26: PETER HEYANO - DILLINGHAM | C26: 12 | D26: 0 | E26: 0 | F26: 0 | G26: 0
B28: TOTAL | C28: 2365 | D28: 39 | E28: 830 | F28: 869 | G28: 0.3674

Sheet AUX 2020
A1: ALA 2020 BAROMETER as of 10/23/2020
A2: UNIT NO. | B2: UNIT NAME | C2: OBJECTIVE | D2: JR. | E2: SR. | F2: TOTAL | G2: PERCENT
A3: 0077 | B3: HEADQUARTERS | C3: 17 | D3: 0 | E3: 27 | F3: 27 | G3: 1.5882
A4: 0028 | B4: SPENARD | C4: 217 | D4: 5 | E4: 273 | F4: 278 | G4: =F4/C4 -> 1.281105991
A5: 0017 | B5: ROBERT G. BLAIR | C5: 105 | D5: 3 | E5: 119 | F5: 122 | G5: 1.161904762
A6: 0035 | B6: SUSITNA VALLEY | C6: 205 | D6: 16 | E6: 212 | F6: 226 | G6: 1.102439024
A7: 0033 | B7: PETERS CREEK | C7: 158 | D7: 20 | E7: 154 | F7: 174 | G7: 1.101265823
A8: 0005 | B8: SEWARD | C8: 163 | D8: 3 | E8: 163 | F8: 166 | G8: 1.018404908
A9: 0003 | B9: KETCHIKAN | C9: 55 | D9: 4 | E9: 52 | F9: 56 | G9: 1.018181818
A10: 0027 | B10: GLADYS M. HEINTZ | C10: 10 | D10: 0 | E10: 10 | F10: 10 | G10: 1
A11: 0006 | B11: MERLIN ELMER PALMER | C11: 102 | D11: 16 | E11: 84 | F11: 100 | G11: 0.9804
A12: 0016 | B12: GENERAL BUCKNER | C12: 133 | D12: 7 | E12: 123 | F12: 130 | G12: =F12/C12 -> 0.977443609
A13: 0015 | B13: MATANUSKA VALLEY | C13: 125 | D13: 1 | E13: 119 | F13: 120 | G13: 0.96
A14: 0057 | B14: C. RUSSELL HUBER | C14: 245 | D14: 26 | E14: 209 | F14: 235 | G14: 0.9591836735
A15: 0020 | B15: GEO. H. PLUMLEY MEMORIAL | C15: 148 | D15: 15 | E15: 125 | F15: 140 | G15: 0.9459459459
A16: 0018 | B16: NINILCHIK | C16: 90 | D16: 2 | E16: 83 | F16: 85 | G16: 0.9444444444
A17: 0011 | B17: DORMAN H. BAKER | C17: 79 | D17: 4 | E17: 67 | F17: 71 | G17: 0.8987341772
A18: 0012 | B18: LYNN CANAL | C18: 104 | D18: 1 | E18: 92 | F18: 93 | G18: 0.8942307692
A19: 0030 | B19: CON MILLER | C19: 30 | D19: 2 | E19: 24 | F19: 26 | G19: 0.8666666667
A20: 0029 | B20: MULDOON | C20: 103 | D20: 0 | E20: 87 | F20: 87 | G20: 0.8446601942
A21: 0001 | B21: JACK HENRY | C21: 259 | D21: 5 | E21: 206 | F21: 211 | G21: 0.8146718147
A22: 0019 | B22: NOME | C22: 10 | D22: 0 | E22: 8 | F22: 8 | G22: 0.8
A23: 0442 | B23: PETER HEYANO - DILLINGHAM | C23: 13 | D23: 0 | E23: 10 | F23: 10 | G23: =F23/C23 -> 0.7692307692
A24: 0013 | B24: SITKA | C24: 58 | D24: 0 | E24: 21 | F24: 21 | G24: =F24/C24 -> 0.3620689655
A25: 0034 | B25: CHAPPIE JAMES | C25: 25 | D25: 0 | E25: 7 | F25: 7 | G25: =F25/C25 -> 0.28
B27: TOTAL | C27: 2437 | D27: 130 | E27: 2275 | F27: 2405 | G27: 0.9869
